[Event "*** Qualifier 1: Titled Tuesday 3|2 Blitz"]
[Site "Chess.com"]
[Date "2017.04.04"]
[Round "6"]
[White "Bigfish1995"]
[Black "larso"]
[Result "1-0"]
[WhiteElo "2663"]
[BlackElo "2444"]
[TimeControl "180+2"]
[EndTime "14:23:49 PDT"]
[Termination "Bigfish1995 won by resignation"]

1. e4 {[%clk 0:03:02]} 1... c5 {[%clk 0:03:00.1]} 2. Nf3 {[%clk 0:02:36.5]} 2...
d6 {[%clk 0:02:59.5]} 3. d4 {[%clk 0:02:35.2]} 3... cxd4 {[%clk 0:03:01.4]} 4.
Nxd4 {[%clk 0:02:36.7]} 4... Nf6 {[%clk 0:03:02.7]} 5. Nc3 {[%clk 0:02:38.3]}
5... a6 {[%clk 0:03:03.3]} 6. h4 {[%clk 0:02:37.2]} 6... e5 {[%clk 0:03:01.2]}
7. Nb3 {[%clk 0:02:37.6]} 7... Be7 {[%clk 0:03:02.4]} 8. Be2 {[%clk 0:02:36.7]}
8... Be6 {[%clk 0:02:59.6]} 9. f4 {[%clk 0:02:37.4]} 9... exf4 {[%clk
0:02:58.1]} 10. Bxf4 {[%clk 0:02:37.8]} 10... Nc6 {[%clk 0:02:59.7]} 11. Qd3
{[%clk 0:02:38.5]} 11... Ne5 {[%clk 0:03:00.4]} 12. Qg3 {[%clk 0:02:34.7]} 12...
O-O {[%clk 0:02:39.3]} 13. O-O-O {[%clk 0:02:33.5]} 13... Qc7 {[%clk 0:02:39.8]}
14. h5 {[%clk 0:02:33.6]} 14... Kh8 {[%clk 0:02:40.3]} 15. h6 {[%clk 0:02:20.6]}
15... g6 {[%clk 0:02:40.7]} 16. Bg5 {[%clk 0:02:20.1]} 16... Ng8 {[%clk
0:02:37.3]} 17. Nd4 {[%clk 0:02:16.8]} 17... Rad8 {[%clk 0:02:29.6]} 18. Rhf1
{[%clk 0:02:15.5]} 18... Nc6 {[%clk 0:01:50.6]} 19. Nxe6 {[%clk 0:02:10.8]}
19... fxe6 {[%clk 0:01:49.7]} 20. Rxf8 {[%clk 0:02:03]} 20... Rxf8 {[%clk
0:01:49.5]} 21. Bxe7 {[%clk 0:02:02.4]} 21... Ngxe7 {[%clk 0:01:51.2]} 22. Qxd6
{[%clk 0:02:00]} 22... Qxd6 {[%clk 0:01:51.2]} 23. Rxd6 {[%clk 0:01:59.6]} 23...
Rf2 {[%clk 0:01:52]} 24. Rxe6 {[%clk 0:01:53.8]} 24... Kg8 {[%clk 0:01:25.1]}
25. Bc4 {[%clk 0:01:27.2]} 25... Kf8 {[%clk 0:01:25.2]} 26. Nd5 {[%clk 0:01:24]}
26... Rxg2 {[%clk 0:01:19.9]} 27. Nxe7 {[%clk 0:01:05.2]} 27... Nxe7 {[%clk
0:01:21.8]} 28. Rf6+ {[%clk 0:01:06.7]} 28... Ke8 {[%clk 0:01:22.1]} 29. Rf7
{[%clk 0:01:08.3]} 29... Rg1+ {[%clk 0:00:52.8]} 30. Kd2 {[%clk 0:01:07.5]}
30... Rg2+ {[%clk 0:00:54.1]} 31. Kc3 {[%clk 0:01:03.5]} 31... Rg3+ {[%clk
0:00:55]} 32. Kd4 {[%clk 0:00:59.7]} 32... Nc6+ {[%clk 0:00:26]} 33. Kc5 {[%clk
0:01:00]} 33... Rg5+ {[%clk 0:00:25.6]} 34. Kd6 {[%clk 0:00:59.1]} 1-0

[Event "*** Qualifier 1: Titled Tuesday 3|2 Blitz"]
[Site "Chess.com"]
[Date "2017.04.04"]
[Round "6"]
[White "Goala"]
[Black "RichardLeyvaP"]
[Result "1-0"]
[WhiteElo "2277"]
[BlackElo "2373"]
[TimeControl "180+2"]
[EndTime "14:23:58 PDT"]
[Termination "Goala won on time"]

1. d4 {[%clk 0:03:02]} 1... Nf6 {[%clk 0:03:00]} 2. c4 {[%clk 0:03:03]} 2... g6
{[%clk 0:03:00.5]} 3. Nc3 {[%clk 0:03:03.8]} 3... Bg7 {[%clk 0:03:01.8]} 4. e4
{[%clk 0:03:04.6]} 4... d6 {[%clk 0:03:03.1]} 5. h3 {[%clk 0:03:06.1]} 5... O-O
{[%clk 0:03:02.8]} 6. Bg5 {[%clk 0:03:07.7]} 6... c5 {[%clk 0:03:00.9]} 7. d5
{[%clk 0:03:08.9]} 7... h6 {[%clk 0:03:02.4]} 8. Be3 {[%clk 0:03:09.3]} 8... e6
{[%clk 0:03:03.7]} 9. Nf3 {[%clk 0:03:08.9]} 9... exd5 {[%clk 0:03:04.9]} 10.
cxd5 {[%clk 0:03:10.8]} 10... Re8 {[%clk 0:02:45.7]} 11. Bd3 {[%clk 0:03:11.3]}
11... a6 {[%clk 0:02:37.8]} 12. a4 {[%clk 0:03:11.5]} 12... c4 {[%clk
0:02:39.2]} 13. Bc2 {[%clk 0:03:09.4]} 13... Qa5 {[%clk 0:02:36.8]} 14. O-O
{[%clk 0:03:08.9]} 14... Nbd7 {[%clk 0:02:38]} 15. Bf4 {[%clk 0:02:59.1]} 15...
Qc7 {[%clk 0:02:11.1]} 16. Re1 {[%clk 0:02:57.1]} 16... Nh5 {[%clk 0:02:11]} 17.
Bh2 {[%clk 0:02:54]} 17... Ne5 {[%clk 0:02:11.7]} 18. Nxe5 {[%clk 0:02:49.9]}
18... Bxe5 {[%clk 0:02:12.6]} 19. Bxe5 {[%clk 0:02:50.8]} 19... Rxe5 {[%clk
0:02:14.3]} 20. Qf3 {[%clk 0:02:40.9]} 20... Bd7 {[%clk 0:02:10.4]} 21. g4
{[%clk 0:02:13.7]} 21... Ng7 {[%clk 0:02:09.8]} 22. Qg3 {[%clk 0:02:15.3]} 22...
Qb6 {[%clk 0:02:00.8]} 23. Rab1 {[%clk 0:01:32.6]} 23... g5 {[%clk 0:02:00.3]}
24. b3 {[%clk 0:01:24.5]} 24... cxb3 {[%clk 0:01:46.6]} 25. Rxb3 {[%clk
0:01:26.4]} 25... Qc7 {[%clk 0:01:40.1]} 26. Bd3 {[%clk 0:01:22.2]} 26... Rae8
{[%clk 0:01:17.3]} 27. Reb1 {[%clk 0:01:22.7]} 27... Bc8 {[%clk 0:01:18.1]} 28.
Ne2 {[%clk 0:01:08.5]} 28... Qa5 {[%clk 0:01:15.4]} 29. Rb4 {[%clk 0:01:03.5]}
29... h5 {[%clk 0:01:09]} 30. Nd4 {[%clk 0:01:01.4]} 30... Qc5 {[%clk
0:01:00.7]} 31. Nf3 {[%clk 0:01:01]} 31... hxg4 {[%clk 0:00:21.1]} 32. hxg4
{[%clk 0:01:01.4]} 32... Qc3 {[%clk 0:00:16.3]} 33. Nxe5 {[%clk 0:00:59.2]}
33... Rxe5 {[%clk 0:00:18.2]} 34. Rc4 {[%clk 0:00:58.7]} 1-0

[Event "*** Qualifier 1: Titled Tuesday 3|2 Blitz"]
[Site "Chess.com"]
[Date "2017.04.04"]
[Round "6"]
[White "MorpheusPro"]
[Black "Rock700chess"]
[Result "0-1"]
[WhiteElo "2087"]
[BlackElo "2221"]
[TimeControl "180+2"]
[EndTime "14:24:08 PDT"]
[Termination "Rock700chess won by checkmate"]

1. d4 {[%clk 0:02:59.2]} 1... Nf6 {[%clk 0:03:00.3]} 2. c4 {[%clk 0:02:59.6]}
2... e6 {[%clk 0:03:01.7]} 3. Nc3 {[%clk 0:03:00.2]} 3... Bb4 {[%clk 0:02:59.7]}
4. Nf3 {[%clk 0:03:00.6]} 4... d5 {[%clk 0:02:58.8]} 5. Bg5 {[%clk 0:02:59.8]}
5... Nbd7 {[%clk 0:02:56.3]} 6. e3 {[%clk 0:03:00.4]} 6... O-O {[%clk
0:02:55.3]} 7. Bd3 {[%clk 0:02:59.8]} 7... h6 {[%clk 0:02:50.4]} 8. Bh4 {[%clk
0:02:59.9]} 8... c6 {[%clk 0:02:46.2]} 9. O-O {[%clk 0:02:59.5]} 9... b6 {[%clk
0:02:29.8]} 10. Ne5 {[%clk 0:02:57.4]} 10... Bb7 {[%clk 0:02:21.9]} 11. Nxd7
{[%clk 0:02:55]} 11... Qxd7 {[%clk 0:02:22]} 12. Bxf6 {[%clk 0:02:55.2]} 12...
gxf6 {[%clk 0:02:23.9]} 13. Qh5 {[%clk 0:02:22.3]} 13... dxc4 {[%clk 0:02:00.9]}
14. Bxc4 {[%clk 0:02:17.3]} 14... Bxc3 {[%clk 0:02:00.3]} 15. bxc3 {[%clk
0:02:17.2]} 15... Kh7 {[%clk 0:01:56.4]} 16. Bd3+ {[%clk 0:01:40.1]} 16... f5
{[%clk 0:01:56.1]} 17. e4 {[%clk 0:01:39.5]} 17... fxe4 {[%clk 0:01:53.1]} 18.
Bxe4+ {[%clk 0:01:39.8]} 18... f5 {[%clk 0:01:54.7]} 19. Bf3 {[%clk 0:01:32.1]}
19... Qf7 {[%clk 0:01:50.3]} 20. Qh3 {[%clk 0:01:25]} 20... a5 {[%clk
0:01:45.4]} 21. Rfe1 {[%clk 0:01:25.5]} 21... a4 {[%clk 0:01:43.3]} 22. Re5
{[%clk 0:01:25]} 22... Ra5 {[%clk 0:01:37]} 23. Rxa5 {[%clk 0:01:21.4]} 23...
bxa5 {[%clk 0:01:38.9]} 24. Re1 {[%clk 0:01:14.7]} 24... c5 {[%clk 0:01:38.1]}
25. dxc5 {[%clk 0:01:09.4]} 25... Bxf3 {[%clk 0:01:34.2]} 26. Qxf3 {[%clk
0:01:09.7]} 26... Rc8 {[%clk 0:01:32.6]} 27. Re5 {[%clk 0:01:04.2]} 27... Qd7
{[%clk 0:01:30.7]} 28. h3 {[%clk 0:00:56.9]} 28... Qc6 {[%clk 0:01:29.5]} 29.
Qe3 {[%clk 0:00:54.2]} 29... Rg8 {[%clk 0:01:27.9]} 30. f3 {[%clk 0:00:42.2]}
30... Rg6 {[%clk 0:01:29.2]} 31. Kf2 {[%clk 0:00:32.7]} 31... h5 {[%clk
0:01:23.4]} 32. h4 {[%clk 0:00:30.8]} 32... Qb7 {[%clk 0:01:21]} 33. Qd2 {[%clk
0:00:19.7]} 33... Qg7 {[%clk 0:01:17.8]} 34. Qf4 {[%clk 0:00:09.8]} 34... Rxg2+
{[%clk 0:01:16.7]} 35. Ke3 {[%clk 0:00:10.4]} 35... Rxa2 {[%clk 0:01:15.6]} 36.
Rxe6 {[%clk 0:00:09]} 36... Qxc3# {[%clk 0:01:14.8]} 0-1

[Event "*** Qualifier 1: Titled Tuesday 3|2 Blitz"]
[Site "Chess.com"]
[Date "2017.04.04"]
[Round "6"]
[White "Zhani-Z"]
[Black "Usurpov"]
[Result "1-0"]
[WhiteElo "2383"]
[BlackElo "2272"]
[TimeControl "180+2"]
[EndTime "14:24:08 PDT"]
[Termination "Zhani-Z won by resignation"]

1. e4 {[%clk 0:02:31.1]} 1... c5 {[%clk 0:02:59.5]} 2. Nf3 {[%clk 0:02:31.4]}
2... Nc6 {[%clk 0:03:00.6]} 3. Bb5 {[%clk 0:02:32.5]} 3... e6 {[%clk 0:03:01.4]}
4. O-O {[%clk 0:02:30.6]} 4... Nge7 {[%clk 0:03:02.4]} 5. Re1 {[%clk 0:02:32]}
5... a6 {[%clk 0:03:02.3]} 6. Bf1 {[%clk 0:02:32.3]} 6... d5 {[%clk 0:03:02.2]}
7. exd5 {[%clk 0:02:32.8]} 7... Nxd5 {[%clk 0:03:04.1]} 8. d4 {[%clk 0:02:30]}
8... Nf6 {[%clk 0:03:00.2]} 9. Be3 {[%clk 0:01:52.3]} 9... Ng4 {[%clk
0:02:55.7]} 10. Bg5 {[%clk 0:01:51.2]} 10... Be7 {[%clk 0:02:10.1]} 11. Bxe7
{[%clk 0:01:49.8]} 11... Nxe7 {[%clk 0:02:09.8]} 12. dxc5 {[%clk 0:01:41.6]}
12... Qc7 {[%clk 0:01:57.4]} 13. Nc3 {[%clk 0:01:37]} 13... O-O {[%clk
0:01:49.8]} 14. Qd6 {[%clk 0:01:34.9]} 14... Qxd6 {[%clk 0:01:44]} 15. cxd6
{[%clk 0:01:35.9]} 15... Nf5 {[%clk 0:01:45.1]} 16. Rad1 {[%clk 0:01:36.5]}
16... Rd8 {[%clk 0:01:45.2]} 17. Ne4 {[%clk 0:01:37.6]} 17... Nf6 {[%clk
0:01:43.4]} 18. Nxf6+ {[%clk 0:01:31.6]} 18... gxf6 {[%clk 0:01:43.4]} 19. c4
{[%clk 0:01:27.4]} 19... Rxd6 {[%clk 0:00:59.6]} 20. Rxd6 {[%clk 0:01:27.9]}
20... Nxd6 {[%clk 0:01:01.5]} 21. Rd1 {[%clk 0:01:29.4]} 21... Ne8 {[%clk
0:01:02.4]} 22. c5 {[%clk 0:01:16.7]} 22... Kf8 {[%clk 0:01:00.1]} 23. Nd4
{[%clk 0:01:03.6]} 23... Bd7 {[%clk 0:00:48]} 24. g3 {[%clk 0:01:03.7]} 24...
Rc8 {[%clk 0:00:40.1]} 25. b4 {[%clk 0:01:03.1]} 25... a5 {[%clk 0:00:40.1]} 26.
a3 {[%clk 0:01:03.4]} 26... axb4 {[%clk 0:00:40.8]} 27. axb4 {[%clk 0:01:05.3]}
27... b6 {[%clk 0:00:20.7]} 28. cxb6 {[%clk 0:00:59]} 28... Rb8 {[%clk
0:00:21.4]} 29. b5 {[%clk 0:00:59.4]} 29... Rxb6 {[%clk 0:00:21.1]} 30. Bg2
{[%clk 0:00:58.8]} 30... Ke7 {[%clk 0:00:21.1]} 31. Nc6+ {[%clk 0:00:55.2]}
31... Bxc6 {[%clk 0:00:21.4]} 32. bxc6 {[%clk 0:00:56.4]} 32... Nd6 {[%clk
0:00:04.9]} 33. c7 {[%clk 0:00:55.7]} 33... Nc8 {[%clk 0:00:06]} 34. Rd8 {[%clk
0:00:55.7]} 34... Rb1+ {[%clk 0:00:06.6]} 35. Bf1 {[%clk 0:00:56.1]} 1-0

[Event "*** Qualifier 1: Titled Tuesday 3|2 Blitz"]
[Site "Chess.com"]
[Date "2017.04.04"]
[Round "6"]
[White "kleinebeer98"]
[Black "amaidel"]
[Result "1-0"]
[WhiteElo "2491"]
[BlackElo "2479"]
[TimeControl "180+2"]
[EndTime "14:24:09 PDT"]
[Termination "kleinebeer98 won by checkmate"]

1. e4 {[%clk 0:03:02]} 1... e5 {[%clk 0:03:00.5]} 2. Nf3 {[%clk 0:03:02.9]} 2...
Nf6 {[%clk 0:03:01.6]} 3. Nc3 {[%clk 0:03:00.5]} 3... Nc6 {[%clk 0:03:00.9]} 4.
h3 {[%clk 0:03:01.8]} 4... Bb4 {[%clk 0:02:57.3]} 5. Bd3 {[%clk 0:03:02.6]} 5...
O-O {[%clk 0:02:56.4]} 6. O-O {[%clk 0:03:03.7]} 6... d5 {[%clk 0:02:52.4]} 7.
exd5 {[%clk 0:03:03.5]} 7... Nxd5 {[%clk 0:02:53]} 8. Nxd5 {[%clk 0:02:57.8]}
8... Qxd5 {[%clk 0:02:52.8]} 9. Re1 {[%clk 0:02:59.7]} 9... Bd6 {[%clk
0:02:45.4]} 10. Be4 {[%clk 0:02:54.6]} 10... Qa5 {[%clk 0:02:37.1]} 11. c3
{[%clk 0:02:39.4]} 11... Bd7 {[%clk 0:02:30.5]} 12. b4 {[%clk 0:02:23.1]} 12...
Qb6 {[%clk 0:02:30.5]} 13. d3 {[%clk 0:02:21.4]} 13... a5 {[%clk 0:02:22.3]} 14.
Be3 {[%clk 0:01:54.2]} 14... Qa6 {[%clk 0:02:22.9]} 15. b5 {[%clk 0:01:53.9]}
15... Qxb5 {[%clk 0:02:22.1]} 16. Rb1 {[%clk 0:01:55.2]} 16... Qa6 {[%clk
0:02:20.1]} 17. Ng5 {[%clk 0:01:55.7]} 17... h6 {[%clk 0:02:12.5]} 18. Qh5
{[%clk 0:01:56.9]} 18... Nd8 {[%clk 0:02:01.1]} 19. Nh7 {[%clk 0:01:25.4]} 19...
Re8 {[%clk 0:01:44.8]} 20. Bxh6 {[%clk 0:01:24.4]} 20... gxh6 {[%clk 0:00:53.6]}
21. Qxh6 {[%clk 0:01:09.1]} 21... Be7 {[%clk 0:00:54.1]} 22. Qh5 {[%clk
0:01:03.5]} 22... f5 {[%clk 0:00:43.3]} 23. Bxf5 {[%clk 0:01:04.3]} 23... Bxf5
{[%clk 0:00:40.3]} 24. Qxe8+ {[%clk 0:01:05.7]} 24... Kxh7 {[%clk 0:00:38.7]}
25. Qxe7+ {[%clk 0:01:06.9]} 25... Kh6 {[%clk 0:00:34.7]} 26. Rxe5 {[%clk
0:01:00.7]} 26... Qg6 {[%clk 0:00:33.5]} 27. Qf8+ {[%clk 0:00:59.2]} 27... Kg5
{[%clk 0:00:28.4]} 28. f4+ {[%clk 0:01:00.6]} 28... Kh4 {[%clk 0:00:22.6]} 29.
Rxf5 {[%clk 0:00:52.9]} 29... Ne6 {[%clk 0:00:20.8]} 30. Qe7+ {[%clk 0:00:53.9]}
30... Kg3 {[%clk 0:00:21]} 31. Rf1 {[%clk 0:00:34.1]} 31... Qxf5 {[%clk
0:00:09.5]} 32. Rf3# {[%clk 0:00:35]} 1-0

[Event "*** Qualifier 1: Titled Tuesday 3|2 Blitz"]
[Site "Chess.com"]
[Date "2017.04.04"]
[Round "6"]
[White "armago"]
[Black "ecwinslow"]
[Result "0-1"]
[WhiteElo "2182"]
[BlackElo "2097"]
[TimeControl "180+2"]
[EndTime "14:24:10 PDT"]
[Termination "ecwinslow won on time"]

1. d4 {[%clk 0:03:02]} 1... Nf6 {[%clk 0:02:59.9]} 2. c4 {[%clk 0:03:02.9]} 2...
g6 {[%clk 0:03:01.3]} 3. Nc3 {[%clk 0:03:03.6]} 3... Bg7 {[%clk 0:03:02.1]} 4.
e4 {[%clk 0:03:04.9]} 4... d6 {[%clk 0:03:03.5]} 5. h3 {[%clk 0:03:05.2]} 5...
O-O {[%clk 0:03:03.6]} 6. Nf3 {[%clk 0:03:06.1]} 6... e5 {[%clk 0:03:03.7]} 7.
d5 {[%clk 0:03:07.3]} 7... a5 {[%clk 0:03:03]} 8. g4 {[%clk 0:03:08.2]} 8... Na6
{[%clk 0:02:53.8]} 9. Be3 {[%clk 0:03:08.8]} 9... h5 {[%clk 0:02:45.7]} 10. g5
{[%clk 0:02:44.4]} 10... Ne8 {[%clk 0:02:32.4]} 11. a3 {[%clk 0:02:44.3]} 11...
Bd7 {[%clk 0:02:29.2]} 12. Rb1 {[%clk 0:02:29.4]} 12... f5 {[%clk 0:02:07.2]}
13. gxf6 {[%clk 0:02:29.1]} 13... Qxf6 {[%clk 0:02:07.6]} 14. Be2 {[%clk
0:02:23.2]} 14... Nc5 {[%clk 0:02:05.7]} 15. b4 {[%clk 0:01:50]} 15... axb4
{[%clk 0:02:05.2]} 16. axb4 {[%clk 0:01:51.9]} 16... Na4 {[%clk 0:02:06.5]} 17.
Nxa4 {[%clk 0:01:52.8]} 17... Rxa4 {[%clk 0:02:05.9]} 18. Ng5 {[%clk 0:01:31.7]}
18... Ra3 {[%clk 0:01:50]} 19. Qc1 {[%clk 0:01:19.3]} 19... Ra2 {[%clk
0:01:39.6]} 20. Rb2 {[%clk 0:01:17]} 20... Rxb2 {[%clk 0:01:36.7]} 21. Qxb2
{[%clk 0:01:18.9]} 21... Qe7 {[%clk 0:01:27.3]} 22. Rg1 {[%clk 0:01:08.2]} 22...
Rf4 {[%clk 0:01:14]} 23. Bxf4 {[%clk 0:00:56.8]} 23... exf4 {[%clk 0:01:13.9]}
24. Qc2 {[%clk 0:00:58.5]} 24... Be5 {[%clk 0:01:07.3]} 25. Nf3 {[%clk
0:00:58.3]} 25... Kh7 {[%clk 0:01:00.7]} 26. Ng5+ {[%clk 0:00:42.2]} 26... Kh6
{[%clk 0:01:00.8]} 27. h4 {[%clk 0:00:43.4]} 27... Nf6 {[%clk 0:01:00.7]} 28. f3
{[%clk 0:00:42.9]} 28... Nh7 {[%clk 0:00:59.3]} 29. Qa2 {[%clk 0:00:36.3]} 29...
Bd4 {[%clk 0:00:52.4]} 30. Rg2 {[%clk 0:00:32]} 30... Be3 {[%clk 0:00:49.4]} 31.
Qa8 {[%clk 0:00:29]} 31... Qg7 {[%clk 0:00:48]} 32. Qd8 {[%clk 0:00:19.6]} 32...
Qc3+ {[%clk 0:00:44.4]} 0-1

[Event "*** Qualifier 1: Titled Tuesday 3|2 Blitz"]
[Site "Chess.com"]
[Date "2017.04.04"]
[Round "6"]
[White "jcibarra"]
[Black "AlexanderL"]
[Result "1/2-1/2"]
[WhiteElo "2661"]
[BlackElo "2570"]
[TimeControl "180+2"]
[EndTime "14:24:20 PDT"]
[Termination "Game drawn by agreement"]

1. e4 {[%clk 0:03:02]} 1... e6 {[%clk 0:02:59.7]} 2. d4 {[%clk 0:03:02.4]} 2...
d5 {[%clk 0:03:00.5]} 3. Nd2 {[%clk 0:03:03.3]} 3... c5 {[%clk 0:02:58.7]} 4.
Ngf3 {[%clk 0:03:03.6]} 4... cxd4 {[%clk 0:02:55.3]} 5. exd5 {[%clk 0:03:03.9]}
5... Qxd5 {[%clk 0:02:56]} 6. Bc4 {[%clk 0:03:05.6]} 6... Qd6 {[%clk 0:02:57.1]}
7. O-O {[%clk 0:03:06.9]} 7... Nf6 {[%clk 0:02:58.5]} 8. Nb3 {[%clk 0:03:07.4]}
8... Nc6 {[%clk 0:02:59.2]} 9. Nbxd4 {[%clk 0:03:08.7]} 9... Nxd4 {[%clk
0:02:58.8]} 10. Nxd4 {[%clk 0:03:10.6]} 10... a6 {[%clk 0:03:00.1]} 11. Re1
{[%clk 0:03:10.7]} 11... Qc7 {[%clk 0:03:00.5]} 12. Bf1 {[%clk 0:03:11.4]} 12...
Be7 {[%clk 0:02:59.5]} 13. Qf3 {[%clk 0:03:10.7]} 13... O-O {[%clk 0:03:00.3]}
14. Bf4 {[%clk 0:03:11.1]} 14... Bd6 {[%clk 0:03:01.6]} 15. Bxd6 {[%clk
0:03:02.2]} 15... Qxd6 {[%clk 0:03:03.5]} 16. Rad1 {[%clk 0:03:02.6]} 16... Qc7
{[%clk 0:03:04]} 17. c4 {[%clk 0:02:52.3]} 17... Bd7 {[%clk 0:02:51.4]} 18. Qg3
{[%clk 0:02:49.8]} 18... Rac8 {[%clk 0:02:50.3]} 19. Qxc7 {[%clk 0:02:38.8]}
19... Rxc7 {[%clk 0:02:51.5]} 20. Nf3 {[%clk 0:02:20.3]} 20... Rfc8 {[%clk
0:02:51.7]} 21. Ne5 {[%clk 0:02:19.2]} 21... Be8 {[%clk 0:02:52.9]} 22. f4
{[%clk 0:02:14.4]} 22... Nd7 {[%clk 0:02:51.6]} 23. Nxd7 {[%clk 0:02:11.2]}
23... Bxd7 {[%clk 0:02:52.5]} 24. Rd6 {[%clk 0:02:10.5]} 24... Kf8 {[%clk
0:02:49.1]} 25. Red1 {[%clk 0:02:07.5]} 25... Bc6 {[%clk 0:02:47.2]} 26. Rd8+
{[%clk 0:02:03.4]} 26... Ke7 {[%clk 0:02:47.5]} 27. Rxc8 {[%clk 0:02:04.2]}
27... Rxc8 {[%clk 0:02:49.4]} 28. Kf2 {[%clk 0:02:05]} 28... a5 {[%clk
0:02:49.7]} 29. Ke3 {[%clk 0:02:03.9]} 29... f6 {[%clk 0:02:50.4]} 30. g3 {[%clk
0:02:04.6]} 30... b6 {[%clk 0:02:50.4]} 31. b3 {[%clk 0:02:02.7]} 31... e5
{[%clk 0:02:47.1]} 32. fxe5 {[%clk 0:02:02]} 32... fxe5 {[%clk 0:02:48.2]} 33.
Bd3 {[%clk 0:02:01.2]} 33... Ke6 {[%clk 0:02:19.3]} 34. Be4 {[%clk 0:01:52.7]}
34... Bxe4 {[%clk 0:02:17.6]} 35. Kxe4 {[%clk 0:01:54.6]} 35... Rf8 {[%clk
0:02:14.9]} 36. Rd5 {[%clk 0:01:46.6]} 36... Rf2 {[%clk 0:02:15.5]} 37. Rxe5+
{[%clk 0:01:39.2]} 37... Kd6 {[%clk 0:02:16.3]} 38. Rg5 {[%clk 0:01:05.7]} 38...
Rxh2 {[%clk 0:01:46.4]} 39. Rxg7 {[%clk 0:00:59]} 39... Rxa2 {[%clk 0:01:46.5]}
40. Kd4 {[%clk 0:00:43.6]} 40... Rd2+ {[%clk 0:01:35.9]} 41. Kc3 {[%clk
0:00:43.1]} 41... Rg2 {[%clk 0:01:35.6]} 42. Kd4 {[%clk 0:00:41]} 42... h5
{[%clk 0:01:26.7]} 43. Rg6+ {[%clk 0:00:41.4]} 43... Kc7 {[%clk 0:01:27.9]} 44.
Rg5 {[%clk 0:00:42.6]} 44... Kb7 {[%clk 0:01:22.5]} 45. Kc3 {[%clk 0:00:40.5]}
45... Rh2 {[%clk 0:01:22.1]} 46. b4 {[%clk 0:00:40]} 46... axb4+ {[%clk
0:01:19.4]} 47. Kxb4 {[%clk 0:00:41.9]} 47... Rb2+ {[%clk 0:01:11.1]} 48. Kc3
{[%clk 0:00:41.7]} 48... Rh2 {[%clk 0:01:13]} 49. Kb4 {[%clk 0:00:42.2]} 1/2-1/2

[Event "*** Qualifier 1: Titled Tuesday 3|2 Blitz"]
[Site "Chess.com"]
[Date "2017.04.04"]
[Round "6"]
[White "oggy1984"]
[Black "dhanushbharadwaj"]
[Result "1-0"]
[WhiteElo "2319"]
[BlackElo "2422"]
[TimeControl "180+2"]
[EndTime "14:24:25 PDT"]
[Termination "oggy1984 won by checkmate"]

1. Nf3 {[%clk 0:03:02]} 1... Nf6 {[%clk 0:03:00.5]} 2. c4 {[%clk 0:03:02.1]}
2... g6 {[%clk 0:03:00.5]} 3. Nc3 {[%clk 0:03:02.5]} 3... Bg7 {[%clk 0:03:01.3]}
4. d4 {[%clk 0:03:03.6]} 4... d6 {[%clk 0:03:02.2]} 5. e4 {[%clk 0:03:04.9]}
5... O-O {[%clk 0:03:03.2]} 6. Be2 {[%clk 0:03:06.4]} 6... Na6 {[%clk
0:03:02.9]} 7. O-O {[%clk 0:03:06.7]} 7... e5 {[%clk 0:03:04.1]} 8. Be3 {[%clk
0:03:06.1]} 8... Ng4 {[%clk 0:03:03.8]} 9. Bg5 {[%clk 0:03:06.7]} 9... Qe8
{[%clk 0:03:04.5]} 10. h3 {[%clk 0:03:03.7]} 10... h6 {[%clk 0:03:03.4]} 11. Bh4
{[%clk 0:03:03.4]} 11... exd4 {[%clk 0:03:01.8]} 12. Nxd4 {[%clk 0:03:00]} 12...
Nf6 {[%clk 0:03:02.3]} 13. Bf3 {[%clk 0:02:56.4]} 13... c6 {[%clk 0:03:02.2]}
14. Re1 {[%clk 0:02:53.2]} 14... Be6 {[%clk 0:03:01.8]} 15. Nd5 {[%clk
0:02:24.5]} 15... cxd5 {[%clk 0:02:53.4]} 16. exd5 {[%clk 0:02:24.8]} 16... Qc8
{[%clk 0:02:28]} 17. dxe6 {[%clk 0:02:22.3]} 17... fxe6 {[%clk 0:02:01.4]} 18.
Nxe6 {[%clk 0:02:04.4]} 18... Rf7 {[%clk 0:02:00.9]} 19. Qxd6 {[%clk 0:01:42.6]}
19... Qxc4 {[%clk 0:01:47.4]} 20. Nxg7 {[%clk 0:01:19.4]} 20... Qxh4 {[%clk
0:01:46.9]} 21. Ne6 {[%clk 0:01:07.6]} 21... Rc8 {[%clk 0:01:38.4]} 22. Nd8
{[%clk 0:00:44]} 22... Rd7 {[%clk 0:01:17.5]} 23. Bd5+ {[%clk 0:00:14.1]} 23...
Nxd5 {[%clk 0:01:10.3]} 24. Qe6+ {[%clk 0:00:10.2]} 24... Kf8 {[%clk 0:00:26.1]}
25. Qe8+ {[%clk 0:00:08.9]} 25... Kg7 {[%clk 0:00:26.3]} 26. Qxd7+ {[%clk
0:00:10.2]} 26... Kf6 {[%clk 0:00:27.9]} 27. Qxc8 {[%clk 0:00:08.1]} 27... Nac7
{[%clk 0:00:23.5]} 28. Qd7 {[%clk 0:00:06.6]} 28... Qd4 {[%clk 0:00:18.6]} 29.
Qf7+ {[%clk 0:00:05.3]} 29... Kg5 {[%clk 0:00:20]} 30. Rad1 {[%clk 0:00:05.1]}
30... Qxb2 {[%clk 0:00:19.9]} 31. Rxd5+ {[%clk 0:00:04.7]} 31... Nxd5 {[%clk
0:00:21.8]} 32. Qxd5+ {[%clk 0:00:06.1]} 32... Kh4 {[%clk 0:00:23.7]} 33. Re4#
{[%clk 0:00:06.2]} 1-0